[Event "HUN-ch U8-U18 2019"]
[Site "Balatonlelle"]
[Date "2019.06.24"]
[Round "5.6"]
[White "Leszko, Bence"]
[Black "Virag, Balint"]
[Result "1/2-1/2"]
[ECO "A05"]
[WhiteElo "2135"]
[BlackElo "2173"]
[Annotator "NA"]
[PlyCount "119"]
[EventDate "2019.06.21"]
[EventType "swiss"]
[EventCountry "HUN"]
[SourceTitle "playchess.com"]
[Source "ChessBase"]
[SourceQuality "1"]
[TimeControl "40/5400+30:1800+30"]

1. Nf3 {[%emt 0:00:12]} Nf6 {[%emt 0:00:15]} 2. c4 {[%emt 0:00:04]} g6 {[%emt 0:00:25]} 3. Nc3 {[%emt 0:00:06]} Bg7 {[%emt 0:00:10]} 4. g3 {[%emt 0:02:18]} d5 {[%emt 0:02:45]} 5. cxd5 {[%emt 0:01:50]} Nxd5 {[%emt 0:00:10]} 6. Bg2 {[%emt 0:00:30]} Nb6 {[%emt 0:11:07]} 7. O-O {[%emt 0:01:47]} O-O {[%emt 0:04:30]} 8. d3 {[%emt 0:02:25]} Bd7 {[%emt 0:03:59]} 9. Be3 {[%emt 0:01:19]} Bc6 {[%emt 0:01:03]} 10. Qd2 {[%emt 0:00:37]} Re8 {[%emt 0:03:18]} 11. Bh6 {[%emt 0:00:20]} Bh8 {[%emt 0:01:51]} 12. Rac1 {[%emt 0:02:53]} N8d7 {[%emt 0:03:01]} 13. Rfd1 {[%emt 0:03:36]} Nf6 {[%emt 0:03:53]} 14. h3 {[%emt 0:01:29]} Nfd5 {[%emt 0:02:23]} 15. e4 {[%emt 0:02:25]} Nf6 {[%emt 0:01:47]} 16. Qe2 {[%emt 0:01:24]} e5 {[%emt 0:04:18]} 17. Bg5 {[%emt 0:05:56]} Qd7 {[%emt 0:11:50]} 18. Rd2 {[%emt 0:05:15]} Bg7 {[%emt 0:09:16]} 19. Rcd1 {[%emt 0:01:52]} h6 {[%emt 0:06:28]} 20. Bxf6 {[%emt 0:03:30]} Bxf6 {[%emt 0:00:04]} 21. d4 {[%emt 0:00:13]} exd4 {[%emt 0:01:32]} 22. Nxd4 {[%emt 0:00:27]} Bxd4 {[%emt 0:00:59]} 23. Rxd4 {[%emt 0:00:01]} Qe7 {[%emt 0:02:34]} 24. Qd2 {[%emt 0:01:54]} Kg7 {[%emt 0:01:10]} 25. Kh2 {[%emt 0:00:14]} Rac8 {[%emt 0:02:02]} 26. Ne2 {[%emt 0:05:58]} Nd7 {[%emt 0:01:10]} 27. Rxd7 {[%emt 0:04:21]} Qxd7 {[%emt 0:00:22]} 28. Qxd7 {[%emt 0:00:03]} Bxd7 {[%emt 0:00:13]} 29. Rxd7 {[%emt 0:00:01]} Red8 {[%emt 0:00:13]} 30. Rd4 {[%emt 0:00:15]} Rxd4 {[%emt 0:02:06]} 31. Nxd4 {[%emt 0:00:00]} Rd8 {[%emt 0:00:10]} 32. Nb3 {[%emt 0:00:38]} Rd1 {[%emt 0:00:36]} 33. e5 {[%emt 0:05:00]} Rb1 {[%emt 0:00:42]} 34. Bxb7 {[%emt 0:00:16]} Rxb2 {[%emt 0:00:07]} 35. Kg2 {[%emt 0:00:26]} Rxa2 {[%emt 0:00:15]} 36. Bc6 {[%emt 0:02:40]} Re2 {[%emt 0:02:06]} 37. Nd4 {[%emt 0:03:19]} Rxe5 {[%emt 0:00:44]} 38. Nb5 {[%emt 0:01:45]} a6 {[%emt 0:00:18]} 39. Nxc7 {[%emt 0:00:22]} Rc5 {[%emt 0:00:46]} 40. Ne8+ {[%emt 0:00:00]} Kf8 {[%emt 0:00:00]} 41. Bb7 {[%emt 0:05:39]} Kxe8 42. Bxa6 Rc3 {[%emt 0:00:41]} 43. Be2 {[%emt 0:00:09]} Ke7 {[%emt 0:00:06]} 44. Bf3 {[%emt 0:00:07]} Kd6 {[%emt 0:00:08]} 45. h4 {[%emt 0:00:21]} Ke5 {[%emt 0:02:17]} 46. Bb7 {[%emt 0:01:54]} Kd4 {[%emt 0:00:28]} 47. Kh3 {[%emt 0:02:06]} f6 {[%emt 0:03:38]} 48. Kg4 {[%emt 0:01:21]} Kd3 {[%emt 0:01:25]} 49. h5 {[%emt 0:01:00]} Rc5 {[%emt 0:07:50]} 50. hxg6 {[%emt 0:00:09]} Rg5+ {[%emt 0:00:26]} 51. Kf3 {[%emt 0:05:05]} Kd4 {[%emt 0:01:29]} 52. Kf4 {[%emt 0:01:05]} Rxg6 {[%emt 0:10:09]} 53. Kf5 {[%emt 0:00:05]} Rg5+ {[%emt 0:00:09]} 54. Kxf6 {[%emt 0:01:18]} Kd3 {[%emt 0:00:06]} 55. f4 {[%emt 0:00:56]} Rxg3 {[%emt 0:00:07]} 56. f5 {[%emt 0:00:05]} Kd4 {[%emt 0:01:55]} 57. Ke6 {[%emt 0:00:44]} Re3+ {[%emt 0:00:53]} 58. Kd6 {[%emt 0:00:22]} Rb3 {[%emt 0:01:56]} 59. Bc6 {[%emt 0:00:28]} Rb2 {[%emt 0:00:20]} 60. f6 {[%emt 0:00:14] Ke5+} 1/2-1/2

[Event "HUN-ch U8-U18 2019"]
[Site "Balatonlelle"]
[Date "2019.06.24"]
[Round "5.7"]
[White "Fule, Simon"]
[Black "Borhy, Marcell"]
[Result "0-1"]
[ECO "B07"]
[WhiteElo "2148"]
[BlackElo "2374"]
[Annotator "NA"]
[PlyCount "58"]
[EventDate "2019.06.21"]
[EventType "swiss"]
[EventCountry "HUN"]
[SourceTitle "playchess.com"]
[Source "ChessBase"]
[SourceQuality "1"]
[TimeControl "40/5400+30:1800+30"]

1. e4 {[%emt 0:00:02]} d6 {[%emt 0:00:09]} 2. d4 {[%emt 0:00:06]} Nf6 {[%emt 0:00:05]} 3. Nc3 {[%emt 0:00:07]} Nbd7 {[%emt 0:00:05]} 4. f4 {[%emt 0:01:41]} e5 {[%emt 0:00:10]} 5. Nf3 {[%emt 0:00:05]} exd4 {[%emt 0:00:07]} 6. Qxd4 {[%emt 0:01:06]} c6 {[%emt 0:00:09]} 7. Be3 {[%emt 0:03:58]} d5 {[%emt 0:00:11]} 8. exd5 {[%emt 0:02:51]} Bc5 {[%emt 0:00:08]} 9. Qd3 {[%emt 0:04:30]} Qe7 {[%emt 0:00:07]} 10. Nd4 {[%emt 0:00:47]} Nb6 {[%emt 0:00:09]} 11. O-O-O {[%emt 0:01:39]} Nbxd5 {[%emt 0:01:10]} 12. Nxd5 {[%emt 0:04:02]} Nxd5 {[%emt 0:00:46]} 13. Bd2 {[%emt 0:00:25]} O-O {[%emt 0:01:35]} 14. c4 {[%emt 0:03:35]} Qf6 {[%emt 0:18:49]} 15. Ne2 {[%emt 0:11:38]} Nb4 {[%emt 0:02:32]} 16. Bxb4 {[%emt 0:03:56]} Bxb4 {[%emt 0:00:17]} 17. Qd4 {[%emt 0:00:08]} Qe7 {[%emt 0:02:51]} 18. Rd3 {[%emt 0:09:27]} Bc5 {[%emt 0:20:14]} 19. Qc3 {[%emt 0:01:06]} Bf5 {[%emt 0:03:04]} 20. Rg3 {[%emt 0:01:45]} f6 {[%emt 0:00:07]} 21. Ng1 {[%emt 0:13:40]} Rfe8 {[%emt 0:08:17]} 22. Bd3 {[%emt 0:01:00]} Bb4 {[%emt 0:02:02]} 23. Qc2 {[%emt 0:00:52]} Qe1+ {[%emt 0:00:32]} 24. Qd1 {[%emt 0:00:05]} Qxd1+ {[%emt 0:01:06]} 25. Kxd1 {[%emt 0:00:07]} Rad8 {[%emt 0:00:08]} 26. Kc2 {[%emt 0:00:21]} Rxd3 {[%emt 0:00:10]} 27. Rxd3 {[%emt 0:00:16]} Bxd3+ {[%emt 0:00:31]} 28. Kxd3 {[%emt 0:00:06]} Re1 {[%emt 0:00:03]} 29. Kd4 {[%emt 0:00:36]} b6 {[%emt 0:00:07]} 0-1

[Event "HUN-ch U8-U18 2019"]
[Site "Balatonlelle"]
[Date "2019.06.24"]
[Round "5.7"]
[White "Csajbok, Levente Tamas"]
[Black "Kovacsy, Barnabas"]
[Result "1/2-1/2"]
[ECO "B49"]
[WhiteElo "1985"]
[BlackElo "2136"]
[Annotator "NA"]
[PlyCount "46"]
[EventDate "2019.06.21"]
[EventType "swiss"]
[EventCountry "HUN"]
[SourceTitle "playchess.com"]
[Source "ChessBase"]
[SourceQuality "1"]
[TimeControl "40/5400+30:1800+30"]

1. e4 {[%emt 0:00:09]} c5 {[%emt 0:00:04]} 2. Nf3 {[%emt 0:00:29]} Nc6 {[%emt 0:00:06]} 3. d4 {[%emt 0:00:08]} cxd4 {[%emt 0:00:03]} 4. Nxd4 {[%emt 0:00:04]} e6 {[%emt 0:00:07]} 5. Nc3 {[%emt 0:00:33]} Qc7 {[%emt 0:00:05]} 6. Be3 {[%emt 0:00:24]} a6 {[%emt 0:00:06]} 7. Be2 {[%emt 0:00:26]} Nf6 {[%emt 0:00:07]} 8. O-O {[%emt 0:00:11]} Bb4 {[%emt 0:00:04]} 9. Na4 {[%emt 0:01:03]} Be7 {[%emt 0:04:46]} 10. Nxc6 {[%emt 0:00:48]} bxc6 {[%emt 0:00:07]} 11. Nb6 {[%emt 0:00:08]} Rb8 {[%emt 0:00:04]} 12. Nxc8 {[%emt 0:00:12]} Qxc8 {[%emt 0:00:04]} 13. Bd4 {[%emt 0:00:53]} c5 {[%emt 0:00:59]} 14. Be5 {[%emt 0:00:22]} Rb6 {[%emt 0:00:21]} 15. Qd3 {[%emt 0:02:04]} d6 {[%emt 0:03:19]} 16. Bc3 {[%emt 0:00:12]} O-O {[%emt 0:03:29]} 17. b3 {[%emt 0:01:41]} Nd7 {[%emt 0:08:38]} 18. f4 {[%emt 0:05:21]} Bf6 {[%emt 0:05:01]} 19. Bxf6 {[%emt 0:04:29]} Nxf6 {[%emt 0:00:32]} 20. c4 {[%emt 0:01:00]} Nd7 {[%emt 0:10:37]} 21. Bg4 {[%emt 0:03:39]} Qc7 {[%emt 0:19:10]} 22. Rad1 {[%emt 0:04:02]} Nf6 {[%emt 0:04:34]} 23. Bh3 {[%emt 0:10:01]} e5 {[%emt 0:07:02]} 1/2-1/2

[Event "HUN-ch U8-U18 2019"]
[Site "Balatonlelle"]
[Date "2019.06.24"]
[Round "5.8"]
[White "Pasztor, Balazs"]
[Black "Onodi, Tamas"]
[Result "1-0"]
[ECO "B36"]
[WhiteElo "2215"]
[BlackElo "1684"]
[Annotator "NA"]
[PlyCount "58"]
[EventDate "2019.06.21"]
[EventType "swiss"]
[EventCountry "HUN"]
[SourceTitle "playchess.com"]
[Source "ChessBase"]
[SourceQuality "1"]
[TimeControl "40/5400+30:1800+30"]

1. e4 {[%emt 0:00:03]} c5 {[%emt 0:00:09]} 2. Nf3 {[%emt 0:00:05]} Nc6 {[%emt 0:00:10]} 3. d4 {[%emt 0:00:07]} cxd4 {[%emt 0:00:10]} 4. Nxd4 {[%emt 0:00:06]} g6 {[%emt 0:00:17]} 5. c4 {[%emt 0:00:34]} Nf6 {[%emt 0:00:09]} 6. Nc3 {[%emt 0:00:13]} Nxd4 {[%emt 0:00:11]} 7. Qxd4 {[%emt 0:00:32]} d6 {[%emt 0:00:07]} 8. Bg5 {[%emt 0:00:43]} Bg7 {[%emt 0:00:30]} 9. f3 {[%emt 0:03:22]} O-O {[%emt 0:00:55]} 10. Qd2 {[%emt 0:00:22]} Be6 {[%emt 0:00:53]} 11. b3 {[%emt 0:04:53]} Qa5 {[%emt 0:00:47]} 12. Rc1 {[%emt 0:00:20]} Rfc8 {[%emt 0:03:43]} 13. Be2 {[%emt 0:01:22]} a6 {[%emt 0:01:39]} 14. Na4 {[%emt 0:00:16]} Qxd2+ {[%emt 0:01:20]} 15. Kxd2 {[%emt 0:00:05]} Rc6 {[%emt 0:04:01]} 16. Nc3 {[%emt 0:00:23]} h6 {[%emt 0:01:45]} 17. Be3 {[%emt 0:04:01]} Nd7 {[%emt 0:03:38]} 18. Nd5 {[%emt 0:04:52]} Bxd5 {[%emt 0:00:45]} 19. cxd5 {[%emt 0:01:42]} Rcc8 {[%emt 0:00:41]} 20. b4 {[%emt 0:04:41]} Bb2 {[%emt 0:01:33]} 21. Rc2 {[%emt 0:03:08]} Rxc2+ {[%emt 0:02:44]} 22. Kxc2 {[%emt 0:00:08]} Bg7 {[%emt 0:00:57]} 23. Kb3 {[%emt 0:06:57]} Rc8 {[%emt 0:02:58]} 24. Rc1 {[%emt 0:04:10]} Rxc1 {[%emt 0:06:34]} 25. Bxc1 {[%emt 0:00:05]} f5 {[%emt 0:05:51]} 26. exf5 {[%emt 0:04:09]} gxf5 {[%emt 0:00:10]} 27. Bd3 {[%emt 0:00:20]} f4 {[%emt 0:11:02]} 28. Bf5 {[%emt 0:02:24]} Nf6 {[%emt 0:01:56]} 29. Bc8 {[%emt 0:02:51]} Nxd5 1-0

[Event "HUN-ch U8-U18 2019"]
[Site "Balatonlelle"]
[Date "2019.06.24"]
[Round "5.8"]
[White "Szilagyi, Norbert"]
[Black "Follardt, Lorinc"]
[Result "1-0"]
[ECO "B30"]
[WhiteElo "2093"]
[BlackElo "1913"]
[Annotator "NA"]
[PlyCount "77"]
[EventDate "2019.06.21"]
[EventType "swiss"]
[EventCountry "HUN"]
[SourceTitle "playchess.com"]
[Source "ChessBase"]
[SourceQuality "1"]
[TimeControl "40/5400+30:1800+30"]

1. e4 {[%emt 0:00:03]} c5 {[%emt 0:00:10]} 2. Nf3 {[%emt 0:00:08]} Nc6 {[%emt 0:00:05]} 3. Bb5 {[%emt 0:00:06]} e6 {[%emt 0:00:47]} 4. O-O {[%emt 0:00:09]} Nge7 {[%emt 0:01:29]} 5. Re1 {[%emt 0:01:48]} a6 {[%emt 0:02:13]} 6. Bf1 {[%emt 0:00:20]} d5 {[%emt 0:06:19]} 7. Nc3 {[%emt 0:09:29]} d4 {[%emt 0:03:12]} 8. Ne2 {[%emt 0:01:12]} Ng6 {[%emt 0:05:09]} 9. d3 {[%emt 0:02:23]} Bd6 {[%emt 0:07:15]} 10. g3 {[%emt 0:05:03]} O-O {[%emt 0:06:38]} 11. Bg2 {[%emt 0:10:09]} f5 {[%emt 0:14:22]} 12. exf5 {[%emt 0:02:40]} exf5 {[%emt 0:00:32]} 13. Bg5 {[%emt 0:03:37]} Qc7 {[%emt 0:03:27]} 14. c3 {[%emt 0:06:57]} f4 {[%emt 0:06:15]} 15. cxd4 {[%emt 0:17:40]} fxg3 {[%emt 0:02:15]} 16. Nxg3 {[%emt 0:01:38]} Bg4 {[%emt 0:02:07]} 17. Be3 {[%emt 0:13:53]} Bxf3 {[%emt 0:11:51]} 18. Bxf3 {[%emt 0:00:15]} cxd4 {[%emt 0:00:27]} 19. Bd2 {[%emt 0:01:39]} Qf7 {[%emt 0:01:02]} 20. Bg2 {[%emt 0:05:35]} Qxf2+ {[%emt 0:00:38]} 21. Kh1 {[%emt 0:00:06]} Nf4 {[%emt 0:03:57]} 22. Bxf4 {[%emt 0:04:15]} Qxf4 {[%emt 0:00:08]} 23. Qh5 {[%emt 0:04:06]} Ne5 {[%emt 0:10:25]} 24. Re4 {[%emt 0:01:37]} Qf7 {[%emt 0:01:32]} 25. Rxe5 {[%emt 0:00:57]} Bxe5 {[%emt 0:00:52]} 26. Qxe5 {[%emt 0:00:06]} Qf6 {[%emt 0:02:55]} 27. Qd5+ {[%emt 0:00:58]} Kh8 {[%emt 0:02:04]} 28. Ne4 {[%emt 0:01:36]} Qb6 {[%emt 0:00:48]} 29. b3 {[%emt 0:01:31]} Rad8 {[%emt 0:00:25]} 30. Qh5 {[%emt 0:01:45]} h6 {[%emt 0:02:25]} 31. Re1 {[%emt 0:01:32]} Qe6 {[%emt 0:00:49]} 32. Qh4 {[%emt 0:00:46]} Qg6 {[%emt 0:00:55]} 33. Nc5 {[%emt 0:00:56]} Rd6 {[%emt 0:00:32]} 34. Qe7 {[%emt 0:00:58]} Rdf6 {[%emt 0:01:37]} 35. Nd7 {[%emt 0:00:40]} Rf2 {[%emt 0:00:26]} 36. Qe4 {[%emt 0:00:33]} Qxe4 {[%emt 0:00:52]} 37. Bxe4 {[%emt 0:00:01]} Rd8 {[%emt 0:00:26]} 38. Ne5 {[%emt 0:00:27]} Rxa2 {[%emt 0:00:36]} 39. Nf7+ {[%emt 0:00:04]} 1-0

[Event "HUN-ch U8-U18 2019"]
[Site "Balatonlelle"]
[Date "2019.06.24"]
[Round "5.9"]
[White "Juhasz, Agoston"]
[Black "Pasti, Aron"]
[Result "0-1"]
[ECO "C41"]
[WhiteElo "2161"]
[BlackElo "2193"]
[Annotator "NA"]
[PlyCount "106"]
[EventDate "2019.06.21"]
[EventType "swiss"]
[EventCountry "HUN"]
[SourceTitle "playchess.com"]
[Source "ChessBase"]
[SourceQuality "1"]
[TimeControl "40/5400+30:1800+30"]

1. e4 {[%emt 0:00:04]} e5 {[%emt 0:00:03]} 2. Nf3 {[%emt 0:00:07]} d6 {[%emt 0:00:03]} 3. d4 {[%emt 0:00:17]} exd4 {[%emt 0:00:12]} 4. Nxd4 {[%emt 0:00:11]} Nf6 {[%emt 0:00:09]} 5. Nc3 {[%emt 0:00:34]} Be7 {[%emt 0:00:08]} 6. g3 {[%emt 0:01:02]} O-O {[%emt 0:12:36]} 7. Bg2 {[%emt 0:00:15]} Nbd7 {[%emt 0:06:01]} 8. O-O {[%emt 0:17:37]} Nc5 {[%emt 0:00:51]} 9. Nb3 {[%emt 0:00:56]} Nxb3 {[%emt 0:02:39]} 10. axb3 {[%emt 0:00:12]} c6 {[%emt 0:10:06]} 11. Be3 {[%emt 0:10:22]} a6 {[%emt 0:05:01]} 12. f4 {[%emt 0:03:17]} Qc7 {[%emt 0:03:28]} 13. h3 {[%emt 0:04:53]} b5 {[%emt 0:17:51]} 14. Ne2 {[%emt 0:24:34]} Bb7 {[%emt 0:01:19]} 15. Qd3 {[%emt 0:02:41]} Rfd8 {[%emt 0:09:02]} 16. Rad1 {[%emt 0:01:43]} c5 {[%emt 0:01:34]} 17. c4 {[%emt 0:02:00]} b4 {[%emt 0:01:38]} 18. g4 {[%emt 0:01:27]} Nd7 {[%emt 0:02:36]} 19. Ng3 {[%emt 0:01:59]} g6 {[%emt 0:02:18]} 20. Rfe1 {[%emt 0:08:24]} Nb8 {[%emt 0:02:37]} 21. Qc2 {[%emt 0:02:10]} Nc6 {[%emt 0:00:42]} 22. Bf3 {[%emt 0:01:21]} Bf8 {[%emt 0:01:40]} 23. Qg2 {[%emt 0:03:11]} Bg7 {[%emt 0:03:28]} 24. e5 {[%emt 0:10:12]} dxe5 {[%emt 0:01:00]} 25. f5 {[%emt 0:00:06]} Rab8 {[%emt 0:10:58]} 26. Bxc5 {[%emt 0:01:48]} Nd4 {[%emt 0:02:15]} 27. Bxd4 {[%emt 0:00:15]} Bxf3 {[%emt 0:00:21]} 28. Qxf3 {[%emt 0:00:04]} exd4 {[%emt 0:00:19]} 29. Kg2 {[%emt 0:01:11]} Be5 {[%emt 0:01:36]} 30. Re4 {[%emt 0:00:44]} f6 {[%emt 0:00:54]} 31. Rd3 {[%emt 0:00:24]} Kh8 {[%emt 0:00:35]} 32. Ne2 {[%emt 0:00:23]} Qc5 {[%emt 0:00:34]} 33. fxg6 {[%emt 0:00:25]} hxg6 {[%emt 0:00:20]} 34. Nf4 {[%emt 0:00:27]} Bxf4 {[%emt 0:00:42]} 35. Rxf4 {[%emt 0:00:08]} Qe7 {[%emt 0:01:15]} 36. Rfxd4 {[%emt 0:01:07]} Rxd4 {[%emt 0:00:15]} 37. Rxd4 {[%emt 0:00:02]} Re8 {[%emt 0:00:29]} 38. c5 {[%emt 0:01:42]} Qe5 {[%emt 0:00:44]} 39. Rd2 {[%emt 0:00:38]} Rc8 {[%emt 0:00:35]} 40. c6 {[%emt 0:00:00]} Qe6 {[%emt 0:00:00]} 41. Rc2 {[%emt 0:04:25]} Qd6 {[%emt 0:15:16]} 42. h4 {[%emt 0:15:41]} Rc7 {[%emt 0:05:37]} 43. Kh3 {[%emt 0:01:29]} Qe6 {[%emt 0:04:29]} 44. Qg3 {[%emt 0:05:23]} Qe7 {[%emt 0:01:29]} 45. Qf4 {[%emt 0:01:46]} Kh7 {[%emt 0:04:39]} 46. Rc4 {[%emt 0:03:48]} a5 {[%emt 0:01:56]} 47. Re4 {[%emt 0:00:44]} Qf7 {[%emt 0:00:34]} 48. Qd6 {[%emt 0:01:02]} Qxb3+ {[%emt 0:00:05]} 49. Kg2 {[%emt 0:00:45]} Qxb2+ {[%emt 0:00:27]} 50. Kf3 {[%emt 0:00:20]} Qb3+ {[%emt 0:00:56]} 51. Re3 {[%emt 0:00:25]} Qf7 {[%emt 0:00:09]} 52. Re6 {[%emt 0:00:45]} b3 {[%emt 0:00:06]} 53. Rxf6 {[%emt 0:00:12]} b2 {[%emt 0:00:09]} 0-1

[Event "HUN-ch U8-U18 2019"]
[Site "Balatonlelle"]
[Date "2019.06.24"]
[Round "5.9"]
[White "Demjen, Mark"]
[Black "Erseki, Aron"]
[Result "1/2-1/2"]
[ECO "B54"]
[WhiteElo "1944"]
[BlackElo "1854"]
[Annotator "NA"]
[PlyCount "34"]
[EventDate "2019.06.21"]
[EventType "swiss"]
[EventCountry "HUN"]
[SourceTitle "playchess.com"]
[Source "ChessBase"]
[SourceQuality "1"]
[TimeControl "40/5400+30:1800+30"]

1. e4 {[%emt 0:00:06]} c5 {[%emt 0:00:12]} 2. Nf3 {[%emt 0:00:03]} d6 {[%emt 0:00:18]} 3. d4 {[%emt 0:00:07]} cxd4 {[%emt 0:00:04]} 4. Nxd4 {[%emt 0:00:06]} Nf6 {[%emt 0:00:06]} 5. f3 {[%emt 0:00:03]} Nc6 {[%emt 0:01:32]} 6. c4 {[%emt 0:00:31]} e6 {[%emt 0:00:34]} 7. Nc3 {[%emt 0:00:25]} Be7 {[%emt 0:08:43]} 8. Be3 {[%emt 0:00:13]} O-O {[%emt 0:00:20]} 9. Be2 {[%emt 0:00:18]} d5 {[%emt 0:01:13]} 10. cxd5 {[%emt 0:23:41]} exd5 {[%emt 0:01:35]} 11. exd5 {[%emt 0:00:39]} Nxd5 {[%emt 0:00:21]} 12. Nxd5 {[%emt 0:00:12]} Qxd5 {[%emt 0:00:14]} 13. Nxc6 {[%emt 0:02:25]} Qxc6 {[%emt 0:00:23]} 14. Qc1 {[%emt 0:03:37]} Qg6 {[%emt 0:02:00]} 15. Kf2 {[%emt 0:12:53]} Rd8 {[%emt 0:08:23]} 16. Qc7 {[%emt 0:04:03]} Rd7 {[%emt 0:03:25]} 17. Qc4 {[%emt 0:08:12]} Rd6 {[%emt 0:06:22]} 1/2-1/2

[Event "HUN-ch U8-U18 2019"]
[Site "Balatonlelle"]
[Date "2019.06.24"]
[Round "5.10"]
[White "Fodor, Kornel"]
[Black "Bakos, Balazs"]
[Result "1/2-1/2"]
[ECO "B44"]
[WhiteElo "1926"]
[BlackElo "2408"]
[Annotator "NA"]
[PlyCount "45"]
[EventDate "2019.06.21"]
[EventType "swiss"]
[EventCountry "HUN"]
[SourceTitle "playchess.com"]
[Source "ChessBase"]
[SourceQuality "1"]
[TimeControl "40/5400+30:1800+30"]

1. e4 {[%emt 0:00:05]} c5 {[%emt 0:00:32]} 2. Nf3 {[%emt 0:00:10]} e6 {[%emt 0:00:35]} 3. d4 {[%emt 0:00:08]} cxd4 {[%emt 0:00:15]} 4. Nxd4 {[%emt 0:00:06]} Nc6 {[%emt 0:00:07]} 5. Nb5 {[%emt 0:00:11]} d6 {[%emt 0:02:17]} 6. c4 {[%emt 0:00:14]} a6 {[%emt 0:02:57]} 7. N5c3 {[%emt 0:01:47]} Nf6 {[%emt 0:01:47]} 8. Be3 {[%emt 0:03:06]} Be7 {[%emt 0:01:50]} 9. Be2 {[%emt 0:00:12]} O-O {[%emt 0:00:25]} 10. O-O {[%emt 0:00:22]} Qc7 {[%emt 0:02:33]} 11. Na3 {[%emt 0:05:54]} b6 {[%emt 0:03:01]} 12. f4 {[%emt 0:04:54]} Bb7 {[%emt 0:11:02]} 13. Bf3 {[%emt 0:00:26]} Nd7 {[%emt 0:06:41]} 14. Rc1 {[%emt 0:03:38]} Nc5 {[%emt 0:05:56]} 15. Nc2 {[%emt 0:07:28]} Bf6 {[%emt 0:04:42]} 16. Nd4 {[%emt 0:06:25]} Nb4 {[%emt 0:18:27]} 17. Rb1 {[%emt 0:37:05]} Ncd3 {[%emt 0:16:02]} 18. Nce2 {[%emt 0:15:38]} e5 {[%emt 0:15:37]} 19. Nf5 {[%emt 0:03:29]} exf4 {[%emt 0:00:56]} 20. Nxf4 {[%emt 0:00:34]} Nxf4 {[%emt 0:01:44]} 21. Bxf4 {[%emt 0:00:05]} Be5 {[%emt 0:00:13]} 22. Bxe5 {[%emt 0:01:44]} dxe5 {[%emt 0:00:02]} 23. Qb3 {[%emt 0:01:45]} 1/2-1/2

[Event "HUN-ch U8-U18 2019"]
[Site "Balatonlelle"]
[Date "2019.06.24"]
[Round "5.10"]
[White "Pater, Peter"]
[Black "Gyurika, Tamas"]
[Result "1-0"]
[ECO "D06"]
[WhiteElo "1901"]
[BlackElo "1643"]
[Annotator "NA"]
[PlyCount "35"]
[EventDate "2019.06.21"]
[EventType "swiss"]
[EventCountry "HUN"]
[SourceTitle "playchess.com"]
[Source "ChessBase"]
[SourceQuality "1"]
[TimeControl "40/5400+30:1800+30"]

1. d4 {[%emt 0:00:19]} d5 {[%emt 0:00:07]} 2. c4 {[%emt 0:00:03]} Nf6 {[%emt 0:02:29]} 3. Nf3 {[%emt 0:01:17]} Bf5 {[%emt 0:02:44]} 4. g3 {[%emt 0:01:08]} e6 {[%emt 0:01:28]} 5. Bg2 {[%emt 0:00:09]} c5 {[%emt 0:03:19]} 6. cxd5 {[%emt 0:01:06]} Bxb1 {[%emt 0:01:39]} 7. Rxb1 {[%emt 0:02:11]} Nxd5 {[%emt 0:00:10]} 8. O-O {[%emt 0:01:13]} Nc6 {[%emt 0:01:11]} 9. e4 {[%emt 0:01:15]} Nb6 {[%emt 0:02:05]} 10. d5 {[%emt 0:06:31]} Nb4 {[%emt 0:11:28]} 11. a3 {[%emt 0:08:48]} Na6 {[%emt 0:00:08]} 12. Bg5 {[%emt 0:12:54]} f6 {[%emt 0:02:42]} 13. Bd2 {[%emt 0:15:10]} exd5 {[%emt 0:02:10]} 14. exd5 {[%emt 0:00:50]} Be7 {[%emt 0:05:05]} 15. Nh4 {[%emt 0:05:11]} O-O {[%emt 0:03:22]} 16. Nf5 {[%emt 0:04:25]} Re8 {[%emt 0:00:24]} 17. Qg4 {[%emt 0:00:32]} Bf8 {[%emt 0:00:06]} 18. Nh6+ {[%emt 0:00:21]} 1-0

[Event "HUN-ch U8-U18 2019"]
[Site "Balatonlelle"]
[Date "2019.06.24"]
[Round "5.11"]
[White "Kozsik, Bende Barnabas"]
[Black "Szalay-Ocsak, Bank"]
[Result "1-0"]
[ECO "A01"]
[WhiteElo "2089"]
[BlackElo "1826"]
[Annotator "NA"]
[PlyCount "65"]
[EventDate "2019.06.21"]
[EventType "swiss"]
[EventCountry "HUN"]
[SourceTitle "playchess.com"]
[Source "ChessBase"]
[SourceQuality "1"]
[TimeControl "40/5400+30:1800+30"]

1. b3 {[%emt 0:00:21]} d5 {[%emt 0:00:08]} 2. Bb2 {[%emt 0:00:06]} Bg4 {[%emt 0:00:05]} 3. h3 {[%emt 0:00:06]} Bh5 {[%emt 0:00:05]} 4. g4 {[%emt 0:00:03]} Bg6 {[%emt 0:00:06]} 5. Bg2 {[%emt 0:00:05]} e6 {[%emt 0:00:13]} 6. Nf3 {[%emt 0:01:33]} Nd7 {[%emt 0:00:35]} 7. e3 {[%emt 0:02:36]} h5 {[%emt 0:02:51]} 8. g5 {[%emt 0:06:17]} h4 {[%emt 0:02:45]} 9. Rg1 {[%emt 0:04:22]} c6 {[%emt 0:07:10]} 10. Bf1 {[%emt 0:07:23]} Ne7 {[%emt 0:04:06]} 11. a4 {[%emt 0:08:42]} a5 {[%emt 0:07:45]} 12. d3 {[%emt 0:01:38]} Bh5 {[%emt 0:08:53]} 13. Be2 {[%emt 0:08:04]} Qc7 {[%emt 0:11:47]} 14. Nbd2 {[%emt 0:02:21]} Nf5 {[%emt 0:03:52]} 15. Rg2 {[%emt 0:06:14]} e5 {[%emt 0:27:05]} 16. e4 {[%emt 0:04:46]} Ne7 {[%emt 0:01:14]} 17. Ng1 {[%emt 0:05:24]} Bxe2 {[%emt 0:01:34]} 18. Nxe2 {[%emt 0:00:34]} Ng6 {[%emt 0:01:22]} 19. Rg4 {[%emt 0:01:15]} Nc5 {[%emt 0:02:01]} 20. Nf1 {[%emt 0:07:33]} dxe4 {[%emt 0:02:45]} 21. dxe4 {[%emt 0:07:35]} Rd8 {[%emt 0:00:28]} 22. Qc1 {[%emt 0:01:24]} Ne6 {[%emt 0:01:35]} 23. Ne3 {[%emt 0:04:26]} Ngf4 {[%emt 0:01:38]} 24. Nc4 {[%emt 0:02:52]} Bd6 {[%emt 0:02:19]} 25. Qe3 {[%emt 0:00:47]} Bc5 {[%emt 0:03:14]} 26. Qf3 {[%emt 0:07:57]} f6 {[%emt 0:03:54]} 27. gxf6 {[%emt 0:00:56]} gxf6 {[%emt 0:00:03]} 28. Nxf4 {[%emt 0:00:16]} Nxf4 {[%emt 0:00:13]} 29. Rxf4 {[%emt 0:00:57]} exf4 {[%emt 0:01:49]} 30. Bxf6 {[%emt 0:00:18]} Bd4 {[%emt 0:02:31]} 31. Bxd8 {[%emt 0:01:04]} Qxd8 {[%emt 0:00:35]} 32. O-O-O {[%emt 0:00:27]} Qf6 {[%emt 0:00:30]} 33. e5 {[%emt 0:00:27]} 1-0